bitfinex-derivatives/quotes_ETHF0:USTF0_20240822
["timestamp","ask_amount","ask_price","bid_price","bid_amount"]
[1724341383458,0.38473,2598.4,2598.0,3.32917352]
[1724341383655,3.96662,2598.5,2598.0,3.32917352]
[1724341384055,3.96662,2598.5,2598.0,0.00417352]
[1724341384462,3.5819,2598.5,2598.0,0.00417352]
[1724341384959,3.2078,2598.2,2598.0,0.00417352]
[1724341385665,3.59256,2598.2,2598.0,0.00417352]
[1724341385856,0.76307,2598.1,2598.0,0.00417352]
[1724341386170,4.61187,2598.1,2598.0,0.00417352]
[1724341386353,9.61187,2598.1,2598.0,0.00417352]
[1724341386562,9.61187,2598.1,2597.8,0.00577467]
[1724341386563,0.3848,2597.9,2597.8,0.00577467]
[1724341386760,3.5926,2597.9,2597.8,0.00577467]
[1724341386958,7.4422,2597.9,2597.8,0.00577467]
[1724341387764,7.4422,2597.9,2597.8,0.01047195]
[1724341389161,12.4422,2597.9,2597.8,0.01047195]
[1724341389372,12.4422,2597.9,2596.7,3.325]
[1724341389373,12.0574,2597.9,2596.7,3.325]
[1724341389564,3.2078,2597.3,2596.7,3.325]
[1724341390170,3.2078,2597.3,2597.1,0.38491]
[1724341390369,3.2078,2597.3,2597.2,0.38491]
[1724341391163,3.2078,2597.3,2597.1,0.00346263]
[1724341391465,3.2078,2597.3,2597.1,0.38838263]
[1724341391662,3.2078,2597.3,2597.2,0.38491]
[1724341392063,0.00577467,2597.5,2597.4,0.38488]
[1724341392858,0.00577467,2597.5,2597.4,4.23448]
[1724341393166,3.2078,2598.3,2597.4,9.8118]
[1724341393473,3.2078,2598.3,2598.0,0.38478]
[1724341393957,3.2078,2598.3,2597.8,0.3494]
[1724341394163,3.2078,2598.3,2598.1,0.38477]
[1724341394469,3.2078,2598.3,2598.2,0.38476]
[1724341394866,3.2078,2598.3,2598.2,4.23356]
[1724341395368,3.2078,2598.3,2598.2,4.60916]
[1724341395764,0.00577467,2598.4,2598.3,0.38474]
[1724341395966,0.00577467,2598.4,2598.2,4.60915]
[1724341396169,0.00577467,2598.4,2598.3,0.38474]
[1724341396363,0.00577467,2598.4,2598.1,3.325]
[1724341396364,0.00577467,2598.4,2598.1,0.38477]
[1724341396559,0.00577467,2598.4,2598.3,0.38475]
[1724341396869,0.00577467,2598.4,2598.3,4.23355]
[1724341397068,0.00577467,2598.4,2598.1,3.325]
[1724341397271,3.2078,2598.2,2598.1,3.325]
[1724341397571,0.39051467,2598.4,2598.1,3.325]
[1724341397961,0.00577467,2598.4,2597.9,0.3756]
[1724341398167,3.2078,2598.2,2597.8,0.3494]
[1724341398471,3.2078,2598.2,2598.1,0.38477]
[1724341398669,0.72577467,2598.4,2597.8,0.3494]
[1724341398872,0.72577467,2598.4,2598.0,0.38478]
[1724341399179,0.72577467,2598.4,2598.1,0.38476]
[1724341399364,0.72577467,2598.4,2597.8,0.3494]
[1724341399365,0.72577467,2598.4,2598.2,0.38476]
[1724341399667,0.72577467,2598.4,2598.1,0.38476]
[1724341399870,1.11050467,2598.4,2597.8,0.3494]
[1724341400074,3.59255,2598.3,2597.9,0.3848]
[1724341400375,0.38476,2598.2,2597.8,0.73421]
[1724341400577,3.59255,2598.3,2597.9,0.3848]
[1724341400776,0.38476,2598.2,2597.8,0.73421]
[1724341400974,0.38478,2598.1,2597.8,0.3494]
[1724341401276,0.3707,2598.0,2597.8,0.73422]
[1724341401469,3.2078,2598.3,2598.2,0.38476]
[1724341401668,0.00577467,2598.4,2598.3,0.38475]
[1724341402181,0.00577467,2598.4,2598.3,4.23355]
[1724341402679,0.00577467,2598.4,2598.3,4.61105]
[1724341403168,0.00577467,2598.4,2598.3,4.2263]
[1724341403373,0.00577467,2598.4,2597.9,3.5623]
[1724341403577,0.00577467,2598.4,2598.3,0.38475]
[1724341404677,0.00577467,2598.4,2598.1,3.325]
[1724341404873,0.00577467,2598.4,2598.3,0.38475]
[1724341406372,7.06237467,2598.4,2597.9,0.3848]
[1724341406570,7.06237467,2598.4,2598.0,0.38479]
[1724341406571,0.7478,2598.3,2598.0,0.38479]
[1724341406880,0.3763,2598.3,2597.8,3.325]
[1724341407083,0.3763,2598.3,2598.0,0.38478]
[1724341407472,0.3763,2598.3,2598.1,0.38477]
[1724341407883,0.3763,2598.3,2598.0,0.38478]
[1724341408277,3.2078,2598.1,2597.7,0.3715]
[1724341408476,0.3763,2598.3,2597.8,3.325]
[1724341408981,0.3763,2598.3,2598.0,0.38478]
[1724341409174,0.3763,2598.3,2598.2,0.38476]
[1724341409477,0.3763,2598.3,2597.8,3.325]
[1724341409875,0.3763,2598.3,2598.1,0.38476]
[1724341410180,0.3763,2598.3,2598.0,0.38478]
[1724341410377,0.3763,2598.3,2598.1,0.38477]
[1724341410881,3.2078,2598.2,2598.0,0.38479]
[1724341411081,3.2078,2598.2,2597.7,0.3715]
[1724341411398,0.38481,2597.9,2597.6,0.38484]
[1724341411583,0.353,2597.8,2597.3,3.565]
[1724341411776,0.353,2597.8,2597.3,0.3572]
[1724341411970,0.353,2597.8,2597.6,0.38484]
[1724341412181,0.353,2597.8,2597.3,0.3572]
[1724341412670,0.353,2597.8,2597.6,0.38484]
[1724341412871,0.353,2597.8,2597.7,0.38483]
[1724341413180,0.353,2597.8,2597.6,0.38484]
[1724341413590,0.353,2597.8,2597.7,0.38483]
[1724341414086,3.2078,2597.9,2597.8,0.38482]
[1724341415173,0.7493,2598.1,2597.8,0.38482]
[1724341415484,0.7493,2598.1,2597.5,3.325]
[1724341415779,0.7493,2598.1,2598.0,0.38479]
[1724341415983,7.2968,2598.2,2598.1,0.38477]
[1724341415984,3.2078,2598.2,2598.1,0.38477]
[1724341416486,0.00577467,2598.4,2598.3,0.38475]
[1724341416875,0.38477,2598.2,2598.0,0.38478]
[1724341417079,3.2078,2598.1,2598.0,0.38478]
[1724341417282,0.39051467,2598.4,2598.2,0.38476]
[1724341417587,0.00577467,2598.4,2598.3,0.38475]
[1724341418683,0.39051467,2598.4,2598.2,0.38475]
[1724341418889,0.38475,2598.3,2598.1,0.38477]
[1724341419078,0.39051467,2598.4,2598.2,0.38475]
[1724341419285,0.00577467,2598.4,2597.6,7.53756279]
[1724341419581,3.59258,2598.1,2597.9,0.3848]
[1724341419786,3.2078,2598.1,2597.9,0.3848]
[1724341419992,3.2078,2598.1,2598.0,0.38479]
[1724341420781,3.2078,2598.1,2598.0,4.23359]
[1724341420983,3.2078,2598.1,2598.0,0.38479]
[1724341421185,3.2078,2598.1,2597.6,3.325]
[1724341421376,0.3774,2598.0,2597.9,0.3848]
[1724341421783,0.3774,2598.0,2597.8,0.38481]
[1724341421984,0.3567,2597.9,2597.8,0.38481]
[1724341422982,4.2063,2597.9,2597.1,0.00346263]
[1724341423191,3.2078,2597.8,2597.2,3.2078]
[1724341423488,3.2078,2597.8,2597.4,0.38486]
[1724341423690,3.59262,2597.8,2597.1,0.38276263]
[1724341423885,3.2078,2597.5,2597.3,0.38488]
[1724341424078,0.3567,2597.4,2597.1,0.00346263]
[1724341424278,3.59271,2597.2,2597.1,0.00346263]
[1724341424593,9.50311,2597.2,2597.1,0.00346263]
[1724341424885,14.50311,2597.2,2597.1,0.00346263]
[1724341425191,0.385,2596.6,2596.3,7.6878207]
[1724341425489,5.2428,2596.6,2596.3,7.6878207]
[1724341425690,9.094,2596.6,2596.3,7.6878207]
[1724341425891,3.8512,2596.6,2596.3,7.6878207]
[1724341426208,0.00336623,2596.6,2596.5,8.51804792]
[1724341426693,3.21116623,2596.6,2596.5,8.51804792]
[1724341426892,0.00336623,2596.6,2596.5,12.36924792]
[1724341427087,3.21116623,2596.6,2596.5,8.51804792]
[1724341427486,3.21116623,2596.6,2596.5,0.00340916]
[1724341427692,3.21116623,2596.6,2596.5,0.38841916]
[1724341427990,3.21116623,2596.6,2596.5,0.00340916]
[1724341430494,7.44736623,2596.6,2596.5,0.00340916]
[1724341430991,12.44736623,2596.6,2596.5,0.00340916]
[1724341431393,12.50736623,2596.6,2596.5,0.00340916]
[1724341431893,0.38503,2596.4,2596.3,0.00577467]
[1724341432095,1.34792,2595.8,2595.7,0.78157856]
[1724341432392,1.34792,2595.8,2595.6,2.0110254]
[1724341432393,0.38513,2595.7,2595.6,0.40732038]
[1724341432692,0.38513,2595.7,2594.7,4.89460155]
[1724341432693,6.50564,2595.7,2594.7,0.382]
[1724341432888,3.2078,2595.2,2594.9,0.38524]
[1724341433083,3.2078,2595.2,2594.7,0.38545478]
[1724341433487,3.2078,2595.2,2595.0,0.38522]
[1724341433882,3.2078,2595.2,2595.1,0.38522]
[1724341434084,3.2078,2595.2,2594.8,0.00577467]
[1724341434292,3.2078,2595.2,2595.0,0.38523]
[1724341434491,3.2078,2595.2,2594.8,0.74497467]
[1724341434993,0.00577467,2595.3,2595.2,0.3852]
[1724341435490,0.00577467,2595.3,2595.2,4.238]
[1724341436491,0.00577467,2595.3,2595.2,0.3852]
[1724341436686,0.00577467,2595.3,2595.2,4.238]
[1724341436991,0.00577467,2595.3,2595.2,0.3852]
[1724341437190,0.00577467,2595.3,2595.1,0.38521]
[1724341437391,0.39096467,2595.3,2595.0,0.38523]
[1724341437600,3.2078,2595.1,2594.9,0.38524]
[1724341437894,3.2078,2595.1,2594.8,0.74497467]
[1724341438086,0.38524,2595.0,2594.8,0.74497467]
[1724341438485,3.59303,2595.1,2594.8,1.13023467]
[1724341438685,0.38524,2595.0,2594.8,0.74497467]
[1724341439283,0.38524,2595.0,2594.8,0.00577467]
[1724341439490,3.2078,2595.1,2594.8,0.39103467]
[1724341439689,6.62302,2595.1,2594.8,0.39103467]
[1724341439893,6.2378,2595.1,2594.9,0.38525]
[1724341440101,6.2378,2595.1,2594.8,0.00577467]
[1724341440395,3.03,2595.1,2595.0,0.38523]
[1724341440596,0.00577467,2595.3,2595.2,0.3852]
[1724341440786,0.76577467,2595.3,2595.2,0.3852]
[1724341440984,0.00577467,2595.3,2595.2,0.3852]
[1724341441594,0.00577467,2595.3,2595.2,4.238]
[1724341442093,0.00577467,2595.3,2595.2,0.3852]
[1724341442691,0.00577467,2595.3,2595.1,0.38521]
[1724341442889,1.09577467,2595.3,2595.1,0.38522]
[1724341443096,1.48097467,2595.3,2595.0,0.38523]
[1724341443299,3.2078,2595.1,2595.0,0.38523]
[1724341443600,3.9478,2595.1,2595.0,0.38523]
[1724341443993,3.2078,2595.1,2595.0,0.38523]
[1724341444297,0.00577467,2595.3,2595.2,1.34822]
[1724341444592,0.00577467,2595.3,2595.2,10.20102]
[1724341444793,3.2078,2595.8,2595.7,0.38513]
[1724341444989,3.7178,2595.8,2595.7,0.38513]
[1724341445186,0.38513,2595.7,2595.5,0.38515]
[1724341445389,2.00514,2595.7,2595.5,0.38515]
[1724341445584,1.62,2595.7,2595.4,0.38517]
[1724341445798,3.2078,2595.5,2595.4,0.38517]
[1724341446398,3.2078,2595.6,2595.5,0.38515]
[1724341446698,3.2078,2595.6,2595.3,0.38518]
[1724341446699,5.1278,2595.6,2595.3,0.38518]
[1724341446891,0.38517,2595.5,2595.3,0.38518]
[1724341447091,0.38518,2595.4,2595.2,0.3852]
[1724341447393,0.38523,2595.1,2594.9,0.38524]
[1724341447595,3.2078,2595.0,2594.9,0.38524]
[1724341447798,3.2078,2595.3,2595.2,0.3852]
[1724341448395,0.3752,2595.6,2595.5,0.38516]
[1724341448597,0.53,2595.6,2595.5,0.38516]
[1724341448908,3.21357467,2595.8,2595.7,0.38513]
[1724341449289,4.58357467,2595.8,2595.7,0.38513]
[1724341449484,4.58357467,2595.8,2595.6,0.3721]
[1724341449701,8.82149467,2595.8,2595.6,0.75724]
[1724341449892,4.58357467,2595.8,2595.6,0.3721]
[1724341450089,0.38513,2595.7,2595.6,0.75723]
[1724341450395,3.21357467,2595.8,2595.6,0.75724]
[1724341450589,3.21357467,2595.8,2595.7,0.38513]
[1724341450590,4.26357467,2595.8,2595.7,0.38513]
[1724341451389,4.26357467,2595.8,2594.8,7.65157467]
[1724341451595,3.2078,2595.4,2595.3,0.38519]
[1724341451802,3.59298,2595.4,2595.3,0.38519]
[1724341451990,3.59298,2595.4,2595.2,0.38519]
[1724341452192,3.2078,2595.4,2594.9,0.369]
[1724341452392,3.4578,2595.4,2594.9,0.369]
[1724341452586,3.4578,2595.4,2595.3,0.38519]
[1724341452587,3.2078,2595.4,2595.3,0.38519]
[1724341453396,8.002,2595.7,2595.4,0.38517]
[1724341453606,10.442,2595.7,2595.4,0.38517]
[1724341453790,0.38517,2595.5,2595.3,0.38518]
[1724341453993,0.38517,2595.5,2595.4,0.38517]
[1724341453994,1.15,2595.5,2595.4,0.38517]
[1724341454203,8.002,2595.7,2595.5,0.38515]
[1724341454503,6.013,2595.7,2595.1,0.96303]
[1724341454800,6.013,2595.7,2595.2,0.3555]
[1724341455407,3.2078,2595.4,2595.0,0.38523]
[1724341455605,0.3799,2595.3,2595.1,0.38522]
[1724341455903,3.59301,2595.2,2595.1,0.38522]
[1724341456207,4.1646,2595.2,2594.9,0.75424]
[1724341456428,4.1646,2595.2,2594.9,0.369]
[1724341456703,0.38522,2595.1,2595.0,0.38523]
[1724341457007,3.5846,2595.2,2594.9,0.369]
[1724341457301,3.5846,2595.2,2595.1,0.38522]
[1724341457892,3.2078,2595.2,2595.1,0.38522]
[1724341458705,3.2078,2595.2,2594.8,0.00577467]
[1724341458706,7.0614,2595.2,2594.8,0.00577467]
[1724341459001,5.6878,2595.2,2594.8,0.00577467]
[1724341459198,3.2078,2594.9,2594.8,0.00577467]
[1724341459502,3.88305,2594.9,2594.8,0.00577467]
[1724341459703,7.44665,2594.9,2594.8,0.00577467]
[1724341460005,7.48665,2594.9,2594.8,0.00577467]
[1724341460595,8.44978,2594.9,2594.8,0.00577467]
[1724341460898,13.44978,2594.9,2594.8,0.00577467]
[1724341461102,2.3116,2594.8,2594.7,0.00345478]
[1724341461298,0.96331,2594.5,2594.0,0.38538]
[1724341461501,3.59316,2594.2,2594.0,0.38538]
[1724341461695,3.2078,2594.5,2594.4,0.38532]
[1724341461902,0.3518,2595.0,2594.9,0.38525]
[1724341462100,7.1454,2595.0,2594.9,0.38525]
[1724341462308,7.15016379,2595.0,2594.9,0.39018872]
[1724341462606,0.35656379,2595.0,2594.9,0.39018872]
[1724341462799,0.00476379,2595.0,2594.9,0.39018872]
[1724341463202,0.00577467,2595.2,2595.1,1.34827]
[1724341463400,0.00577467,2595.2,2595.1,0.38522]
[1724341463806,0.00577467,2595.2,2595.1,5.57257]
[1724341464200,0.01038464,2595.2,2595.1,5.57257]
[1724341464405,0.01038464,2595.2,2595.1,0.75592]
[1724341465803,0.01038464,2595.2,2595.1,5.57257]
[1724341466002,0.01038464,2595.2,2595.1,4.60952]
[1724341466302,0.01038464,2595.2,2595.1,0.75592]
[1724341466503,0.01038464,2595.2,2595.1,4.60952]
[1724341467106,0.01038464,2595.2,2595.1,5.57257]
[1724341467609,0.01038464,2595.2,2595.1,4.60952]
[1724341469104,4.089,2596.0,2595.1,13.6623]
[1724341469407,3.7178,2596.0,2595.9,0.3851]
[1724341469712,4.10289,2596.0,2595.9,0.3851]
[1724341469907,1.11506,2596.2,2596.0,0.38508]
[1724341470208,2.29893795,2596.2,2596.0,0.38509]
[1724341470415,2.29893795,2596.2,2596.0,0.38507]
[1724341470712,0.38508,2596.0,2595.5,0.7493]
[1724341470909,3.2078,2596.0,2595.9,0.3851]
[1724341472404,0.38512,2595.8,2595.6,0.38513]
[1724341472704,0.73387795,2596.2,2595.1,4.8087]
[1724341472705,3.2078,2595.7,2595.1,0.3707]
[1724341472903,3.5844,2595.7,2595.6,0.38514]
[1724341473103,3.2078,2595.7,2595.6,0.38514]
[1724341473300,7.2968,2596.0,2595.9,0.3851]
[1724341473504,3.2078,2596.0,2595.7,0.3593]
[1724341473705,3.2078,2596.0,2595.7,0.38513]
[1724341473706,0.38511,2595.8,2595.7,0.38513]
[1724341473910,0.38512,2595.8,2595.6,0.38514]
[1724341474108,3.59294,2595.7,2595.3,0.3593]
[1724341474318,0.38512,2595.8,2595.3,0.3593]
[1724341474513,0.52,2595.8,2595.7,0.38512]
[1724341474909,3.5726,2596.0,2595.4,0.96292]
[1724341475109,4.70289,2596.0,2595.8,0.3851]
[1724341475318,4.70289,2596.0,2595.8,0.38511]
[1724341475613,4.70288,2596.0,2595.9,0.3851]
[1724341476018,4.3178,2596.0,2595.9,0.3851]
[1724341476208,8.55489,2596.0,2595.8,0.3851]
[1724341476407,4.3178,2596.0,2595.9,0.3851]
[1724341476814,0.35757795,2596.2,2596.1,0.38507]
[1724341476815,0.00387795,2596.2,2596.1,0.38507]
[1724341477811,0.38507,2596.1,2596.0,0.7318]
[1724341478011,3.59673795,2596.2,2595.6,0.96286]
[1724341478316,0.38507,2596.1,2596.0,0.38508]
[1724341478614,3.21167795,2596.2,2595.9,0.38509]
[1724341478810,0.38511,2595.9,2595.7,0.7293]
[1724341479014,3.2078,2595.9,2595.8,0.38511]
[1724341479906,0.38511,2595.8,2595.7,0.7293]
[1724341480105,4.23712,2595.8,2595.6,0.38514]
[1724341480413,4.61642,2595.8,2595.6,0.38513]
[1724341480710,4.61642,2595.8,2595.3,0.7313]
[1724341480711,4.61642,2595.8,2595.5,0.38515]
[1724341480912,0.3793,2595.8,2595.3,0.7313]
[1724341481115,0.76442,2595.8,2595.6,0.38514]
[1724341481316,1.11502,2595.8,2595.6,0.38514]
[1724341481516,4.96782,2595.8,2595.5,0.38515]
[1724341481709,1.11502,2595.8,2595.3,0.7313]
[1724341481907,3.2078,2595.4,2595.3,1.11648]
[1724341482609,1.11502,2595.8,2595.3,0.7313]
[1724341482811,3.59293,2595.7,2595.3,0.7313]
[1724341483011,3.2078,2595.4,2595.3,0.73799]
[1724341483621,0.38514,2595.7,2595.4,0.38517]
[1724341483915,0.38515,2595.6,2595.3,0.73798]
[1724341484114,3.2078,2595.5,2595.3,0.73798]
[1724341484512,3.2078,2595.5,2595.0,0.3542]
[1724341484713,3.59297,2595.5,2595.2,0.38519]
[1724341485110,3.2078,2595.5,2595.3,0.38519]
[1724341485314,3.2078,2595.5,2595.4,0.38517]
[1724341486209,3.2078,2595.9,2595.4,3.8528]
[1724341486409,3.2078,2595.9,2595.8,0.38511]
[1724341486819,7.0598,2595.9,2595.8,0.38511]
[1724341487021,3.2078,2595.9,2595.8,0.38511]
[1724341488213,3.2078,2595.9,2595.6,0.3701]
[1724341488421,3.2078,2595.9,2595.8,0.38511]
[1724341489426,3.2078,2595.9,2595.8,4.23711]
[1724341490117,3.2078,2595.9,2595.8,0.38511]
[1724341490823,3.2078,2595.9,2595.8,4.23711]
[1724341491712,3.2078,2595.9,2595.8,0.38511]
[1724341492212,0.38512,2595.8,2595.6,0.38514]
[1724341492411,1.55512,2595.8,2595.6,0.38514]
[1724341493016,5.40792,2595.8,2595.0,2.47369561]
[1724341493216,3.2078,2595.4,2595.3,0.38519]
[1724341493426,3.2078,2595.4,2594.9,1.51557433]
[1724341493614,0.38518,2595.4,2595.1,0.38521]
[1724341493814,3.2078,2595.2,2595.1,0.38521]
[1724341494010,3.593,2595.2,2595.0,0.38523]
[1724341494216,3.565,2595.2,2595.0,0.38523]
[1724341494523,0.3777,2595.1,2595.0,0.38523]
[1724341494908,4.2313,2595.1,2595.0,0.38523]
[1724341495113,3.59296,2595.5,2595.3,0.38518]
[1724341495308,4.6678,2595.5,2595.4,0.38517]
[1724341495527,3.2078,2595.5,2595.4,0.38517]
[1724341496113,7.0606,2595.5,2595.1,0.7365]
[1724341496312,3.2078,2595.2,2594.9,0.00493872]
[1724341496520,0.7475,2595.1,2595.0,0.38523]
[1724341496719,1.13272,2595.1,2594.9,0.00493872]
[1724341496922,0.38523,2595.0,2594.9,0.00493872]
[1724341497119,1.70523,2595.0,2594.9,0.00493872]
[1724341497326,5.1736,2595.0,2594.9,0.00493872]
[1724341497813,5.55883,2595.0,2594.9,0.00493872]
[1724341498524,5.1736,2595.0,2594.9,0.00493872]
[1724341498818,1.1183,2595.1,2594.9,0.39018872]
[1724341499020,0.7475,2595.1,2595.0,0.38523]
[1724341499224,3.2078,2595.2,2595.1,0.38522]
[1724341499927,3.2078,2595.2,2595.1,4.23882]
[1724341500229,3.2078,2595.5,2595.4,0.38517]
[1724341500816,7.0606,2595.5,2595.0,0.7448]
[1724341501022,7.0606,2595.5,2594.9,0.00493872]
[1724341501023,3.2078,2595.1,2594.9,0.00493872]
[1724341501329,4.3978,2595.1,2594.9,0.00493872]
[1724341501527,3.2078,2595.4,2594.9,0.00493872]
[1724341501915,3.2078,2595.1,2595.0,0.38523]
[1724341502520,3.59303,2595.1,2594.9,0.37533872]
[1724341502721,4.5278,2595.1,2594.9,0.39017872]
[1724341502917,4.5278,2595.1,2594.9,0.00493872]
[1724341503120,4.5278,2595.1,2595.0,0.38523]
[1724341503328,3.2078,2595.1,2595.0,0.38523]
[1724341504429,3.2078,2595.1,2595.0,4.59733]
[1724341504817,3.2078,2595.5,2595.4,0.38517]
[1724341505024,3.2078,2595.5,2595.3,0.38518]
[1724341505222,3.2078,2595.5,2595.0,0.3585]
[1724341505537,3.2078,2595.2,2595.1,0.38521]
[1724341505718,3.2078,2595.2,2595.0,0.74372]
[1724341505916,3.2078,2595.2,2595.1,0.38522]
[1724341506428,0.7182,2595.7,2595.0,0.3585]
[1724341506429,3.2078,2595.5,2595.4,0.38517]
[1724341507731,3.2078,2595.5,2595.0,0.3585]
[1724341508029,3.2078,2595.2,2594.9,0.00493872]
[1724341508230,0.38523,2595.0,2594.9,0.00493872]
[1724341508435,4.87883,2595.0,2594.9,0.00493872]
[1724341508626,9.87883,2595.0,2594.9,0.00493872]
[1724341508827,4.87883,2595.0,2594.9,0.00493872]
[1724341509029,9.87883,2595.0,2594.9,0.00493872]
[1724341509737,10.84192,2595.0,2594.9,0.00493872]
[1724341509922,11.80501,2595.0,2594.9,1e-08]
[1724341510641,3.8536,2594.9,2594.7,1e-08]
[1724341510822,3.2078,2594.8,2594.7,0.38528001]
[1724341511227,3.2078,2595.1,2595.0,0.38523]
[1724341511629,3.2078,2595.1,2595.0,0.38939796]
[1724341512535,0.00577467,2595.3,2595.2,0.3852]
[1724341512834,0.38522,2595.1,2595.0,0.00416796]
[1724341513038,5.69302,2595.1,2595.0,0.00416796]
[1724341513240,9.54662,2595.1,2595.0,0.00416796]
[1724341513436,16.25297,2595.1,2595.0,0.00416796]
[1724341514237,0.38526,2594.8,2594.7,1e-08]
[1724341514440,7.26623,2594.8,2594.7,1e-08]
[1724341514736,16.11983,2594.8,2594.7,1e-08]
[1724341515139,16.11983,2594.8,2594.7,0.00400707]
[1724341516732,10.15666,2594.8,2594.7,0.00400707]
[1724341517432,15.15666,2594.8,2594.7,0.00400707]
[1724341518241,16.11983,2594.8,2594.7,0.00400707]
[1724341518438,0.96324,2594.6,2593.3,1.51063561]
[1724341518630,3.2078,2593.6,2593.1,3.19521561]
[1724341518827,3.2078,2594.0,2593.9,0.3854]
[1724341519029,4.8353,2594.5,2594.2,0.38535]
[1724341519030,3.2078,2594.3,2594.2,0.38535]
[1724341519233,4.5378,2594.3,2594.1,0.38536]
[1724341519437,4.54096188,2594.3,2594.1,0.38891998]
[1724341519630,4.54096188,2594.3,2594.1,0.00355998]
[1724341519838,0.38535,2594.2,2594.1,0.00355998]
[1724341520145,3.29535,2594.2,2594.1,0.00355998]
[1724341520331,7.15055,2594.2,2594.1,0.00355998]
[1724341521646,7.52165,2594.2,2594.1,0.00355998]
[1724341521838,7.1363,2594.2,2594.1,0.00355998]
[1724341522039,3.2811,2594.2,2594.1,0.38892998]
[1724341522543,2.91,2594.2,2594.1,0.38892998]
[1724341522950,0.00577467,2594.5,2594.2,0.96339]
[1724341523145,4.089,2595.8,2594.6,2.31177]
[1724341523146,3.2078,2595.1,2594.6,2.31177]
[1724341523352,4.44,2595.9,2595.0,0.96309]
[1724341523353,3.2078,2595.5,2595.0,0.96309]
[1724341523654,3.19516,2595.5,2595.3,0.38518]
[1724341523845,3.2078,2595.4,2595.1,0.38521]
[1724341524048,5.86160467,2595.4,2595.2,0.3852]
[1724341524246,3.8528,2595.3,2594.2,0.96337]
[1724341524450,3.8528,2595.3,2594.7,0.38527]
[1724341524451,3.2078,2594.8,2594.7,0.38527]
[1724341524649,5.1978,2594.8,2594.7,0.38527]
[1724341525251,3.2078,2595.0,2594.7,3.8536]
[1724341525447,2.56,2595.0,2594.9,0.38525]
[1724341525656,5.7678,2595.0,2594.9,0.38525]
[1724341525859,2.56,2595.0,2594.9,0.38525]
[1724341526156,2.56,2595.0,2594.3,43.6078]
[1724341526461,2.94524,2595.0,2594.8,0.38525]
[1724341527059,2.56,2595.0,2594.8,0.38525]
[1724341527256,2.56,2595.0,2594.7,0.38527]
[1724341527455,5.7678,2595.0,2594.8,0.38526]
[1724341527663,6.15304,2595.0,2594.8,0.38526]
[1724341527859,5.7678,2595.0,2594.8,0.38526]
[1724341528065,5.7678,2595.0,2594.9,0.38525]
[1724341528257,6.15303,2595.0,2594.5,0.3775]
[1724341528565,6.15303,2595.0,2594.8,0.38526]
[1724341528765,0.38527,2594.8,2594.5,0.3775]
[1724341528957,2.38,2594.8,2594.7,0.38528]
[1724341529261,3.2078,2595.0,2594.9,0.38525]
[1724341529454,4.0078,2595.0,2594.9,0.38525]
[1724341530260,4.0078,2595.0,2594.9,4.23885]
[1724341530261,3.2078,2595.0,2594.9,4.23885]
[1724341530458,0.00380467,2595.4,2595.0,0.96309]
[1724341530659,0.00380467,2595.4,2595.3,1.34817]
[1724341530863,0.00380467,2595.4,2595.2,0.38519]
[1724341531163,0.96302,2595.2,2594.7,0.38527]
[1724341531366,3.2078,2594.8,2594.5,0.3684]
[1724341531671,5.8678,2594.8,2594.7,0.38528]
[1724341531962,5.8678,2594.8,2594.6,0.38528]
[1724341532173,5.8678,2594.8,2594.7,0.38528]
[1724341533064,0.3643,2595.1,2594.7,3.8536]
[1724341533065,3.2078,2595.1,2594.7,3.8536]
[1724341533257,1.2,2595.1,2595.0,0.38523]
[1724341533458,1.2,2595.1,2594.8,1.70707]
[1724341533459,3.21160467,2595.4,2595.3,0.38519]
[1724341533659,4.90160467,2595.4,2595.3,0.38519]
[1724341533865,4.90160467,2595.4,2595.0,0.3684]
[1724341534067,0.38521,2595.2,2595.0,0.75363]
[1724341534264,3.30521,2595.2,2595.0,0.75363]
[1724341534456,3.2078,2595.1,2595.0,0.75363]
[1724341534660,6.46302,2595.1,2595.0,0.3684]
[1724341534862,6.0778,2595.1,2595.0,0.75363]
[1724341535967,6.0778,2595.1,2595.0,4.60723]
[1724341535968,3.2078,2595.1,2595.0,4.60723]
[1724341536171,0.38898467,2595.4,2595.2,0.3852]
[1724341536477,3.2078,2595.3,2595.2,0.3852]
[1724341536766,3.2078,2595.3,2595.2,4.238]
[1724341537065,0.00577467,2595.6,2595.5,1.34807]
[1724341537272,0.00577467,2595.6,2595.5,4.23796]
[1724341537970,3.21053075,2596.0,2595.9,0.3851]
[1724341538473,3.21053075,2596.0,2595.9,4.2371]
[1724341540164,0.00577467,2596.2,2596.1,0.38507]
[1724341540578,0.00577467,2596.2,2596.1,4.23707]
[1724341540873,0.00577467,2596.2,2596.1,9.23707]
[1724341541278,3.2078,2596.6,2596.5,0.38501]
[1724341541279,3.21050297,2596.6,2596.5,0.38501]
[1724341541869,3.21050297,2596.6,2596.5,4.23621]
[1724341542472,0.00270297,2596.6,2596.5,4.23621]
[1724341542777,3.21050297,2596.6,2596.5,4.23621]
[1724341543674,0.00270297,2596.6,2596.5,4.23621]
[1724341543863,0.00270297,2596.6,2596.5,10.19875]
[1724341544269,0.00577467,2596.8,2596.7,0.38498]
[1724341544469,7.68167,2597.5,2597.2,0.3849]
[1724341544675,0.3849,2597.3,2597.0,0.38492]
[1724341544869,3.2078,2597.1,2597.0,0.38494]
[1724341545173,3.21091782,2597.1,2597.0,0.38494]
[1724341545364,3.21091782,2597.1,2597.0,4.23534]
[1724341545365,0.00311782,2597.1,2597.0,4.23534]
[1724341545568,0.00311782,2597.1,2596.9,0.75024]
[1724341545776,3.21091782,2597.1,2597.0,0.38494]
[1724341546166,3.21091782,2597.1,2597.0,4.23534]
[1724341546371,0.00311782,2597.1,2597.0,4.23534]